fUSD/lending_fUSD_20260614
["ID","MTS","AMOUNT","RATE_DAILY","PERIOD"]
[425000419,1781403048000,-500.0,0.00028398,8]
[425000398,1781403048000,-114.00727422,0.00028398,8]
[425000401,1781403048000,-436.67717134,0.00028398,8]
[425000405,1781403048000,-500.0,0.00028398,8]
[425000402,1781403048000,-63.32282866,0.00028398,8]
[425000404,1781403048000,-500.0,0.00028398,8]
[425000406,1781403048000,-255.84133172,0.00028398,8]
[425000408,1781403048000,-500.0,0.00028398,8]
[425000407,1781403048000,-244.15866828,0.00028398,8]
[425000403,1781403048000,-500.0,0.00028398,8]
[425000412,1781403048000,-500.0,0.00028398,8]
[425000418,1781403048000,-500.0,0.00028398,8]
[425000409,1781403048000,-500.0,0.00028398,8]
[425000417,1781403048000,-500.0,0.00028398,8]
[425000415,1781403048000,-500.0,0.00028398,8]
[425000416,1781403048000,-500.0,0.00028398,8]
[425000411,1781403048000,-1010.0,0.00028398,8]
[425000413,1781403048000,-500.0,0.00028398,8]
[425000414,1781403048000,-500.0,0.00028398,8]
[425000410,1781403048000,-500.0,0.00028398,8]
[425000448,1781403049000,-2187.68,0.00028398,8]
[425000441,1781403049000,-2552.94,0.00028398,8]
[425000442,1781403049000,-620.13,0.00028398,8]
[425000444,1781403049000,-500.0,0.00028398,8]
[425000443,1781403049000,-500.0,0.00028398,8]
[425000446,1781403049000,-1047.78,0.00028398,8]
[425000447,1781403049000,-500.0,0.00028398,8]
[425000445,1781403049000,-500.0,0.00028398,8]
[425000450,1781403049000,-500.0,0.00028398,8]
[425000457,1781403049000,-2717.04327661,0.00028398,8]
[425000452,1781403049000,-629.15,0.00028398,8]
[425000453,1781403049000,-500.0,0.00028398,8]
[425000454,1781403049000,-500.0,0.00028398,8]
[425000451,1781403049000,-2062.95,0.00028398,8]
[425000456,1781403049000,-505.31,0.00028398,8]
[425000449,1781403049000,-529.6959941,0.00028398,8]
[425000455,1781403049000,-512.50882663,0.00028398,8]
[425000460,1781403482000,-151.0,0.00017191,2]
[425000461,1781403482000,-151.0,0.00017191,2]
[425000472,1781403482000,-152.0,0.00018,2]
[425000464,1781403482000,-151.0,0.00017191,2]
[425000463,1781403482000,-151.0,0.00017191,2]
[425000465,1781403482000,-150.0,0.00017191,2]
[425000466,1781403482000,-150.0,0.00017191,2]
[425000467,1781403482000,-506.0,0.00018,2]
[425000468,1781403482000,-151.0,0.00018,2]
[425000469,1781403482000,-152.0,0.00018,2]
[425000470,1781403482000,-151.0,0.00018,2]
[425000462,1781403482000,-151.0,0.00017191,2]
[425000471,1781403482000,-151.0,0.00018,2]
[425000474,1781403482000,-151.0,0.00018,2]
[425000485,1781403482000,-405.0,0.00020674,2]
[425000473,1781403482000,-151.0,0.00018,2]
[425000483,1781403482000,-219.708,0.0002,2]
[425000481,1781403482000,-151.0,0.00019417,2]
[425000482,1781403482000,-1555.5,0.00019596,2]
[425000484,1781403482000,-411.0,0.00020208,2]
[425000479,1781403482000,-1500.0,0.00019048,2]
[425000478,1781403482000,-152.0,0.00018989,2]
[425000477,1781403482000,-151.0,0.00018989,2]
[425000476,1781403482000,-151.0,0.0001896,2]
[425000475,1781403482000,-153.0,0.00018,2]
[425000480,1781403482000,-153.0,0.00019075,2]
[425000489,1781403483000,-1537.0773954,0.00022437,2]
[425000488,1781403483000,-240.09210061,0.00022407,2]
[425000487,1781403483000,-201.62250399,0.00022407,2]
[425000486,1781403483000,-399.0,0.00021921,2]
[425000493,1781403490000,-312.80899077,0.00022795,2]
[425000490,1781403490000,-151.0,0.00017191,2]
[425000492,1781403490000,-162.477,0.00022437,2]
[425000491,1781403490000,-456.6266046,0.00022437,2]
[425000495,1781403490000,-500.0,0.00022795,2]
[425000500,1781403490000,-23.52618597,0.00022894,2]
[425000494,1781403490000,-1052.56370666,0.00022795,2]
[425000497,1781403490000,-500.0,0.00022894,2]
[425000498,1781403490000,-500.0,0.00022894,2]
[425000496,1781403490000,-500.0,0.00022894,2]
[425000499,1781403490000,-450.997512,0.00022894,2]
[425000501,1781403508000,-500.0,0.00018,2]
[425000503,1781403523000,-184.84099808,0.00022436,2]
[425000505,1781403523000,-342.15900192,0.00022555,2]
[425000502,1781403523000,-3.0,0.00018,2]
[425000504,1781403523000,-200.0,0.00022457,2]
[425000514,1781403544000,-2465.79528634,0.00022895,2]
[425000513,1781403544000,-306.14678476,0.00022895,2]
[425000511,1781403544000,-300.0,0.00022894,2]
[425000512,1781403544000,-4786.7596,0.00022895,2]
[425000510,1781403544000,-728.14161224,0.00022795,2]
[425000509,1781403544000,-410.0,0.00022753,2]
[425000507,1781403544000,-60.84099808,0.00022555,2]
[425000508,1781403544000,-411.0,0.00022749,2]
[425000506,1781403544000,-531.31571858,0.0001891,2]
[425000515,1781403545000,-10000.0,0.00022895,2]
[425000517,1781403554000,-895.0,0.00022895,2]
[425000516,1781403554000,-407.0,0.00022733,2]
[425000520,1781403611000,-402.0,0.00022231,2]
[425000521,1781403611000,-9028.0,0.00022231,2]
[425000518,1781403611000,-513.0,0.00018,2]
[425000519,1781403611000,-151.0,0.00018,2]
[425000524,1781403651000,-397.0,0.00020617,2]
[425000522,1781403651000,-505.0,0.00018,2]
[425000523,1781403651000,-151.0,0.00018,2]
[425000526,1781403651000,-869.1040511,0.00022231,2]
[425000525,1781403651000,-400.0,0.00021605,2]
[425000529,1781403651000,-3502.98969304,0.00022795,2]
[425000527,1781403651000,-191.54137879,0.00022407,2]
[425000528,1781403651000,-205.36487707,0.00022795,2]
[425000530,1781403864000,-389.59,0.0001995,2]
[425000533,1781403864000,-152.0,0.0001995,2]
[425000531,1781403864000,-151.0,0.0001995,2]
[425000532,1781403864000,-152.0,0.0001995,2]
[425000536,1781403864000,-152.0,0.0001995,2]
[425000537,1781403864000,-151.0,0.0001995,2]
[425000535,1781403864000,-150.0,0.0001995,2]
[425000538,1781403864000,-150.0,0.0001995,2]
[425000534,1781403864000,-151.0,0.0001995,2]
[425000547,1781403940000,-392.6145219,0.00022176,2]
[425000539,1781403940000,-150.0,0.0001995,2]
[425000540,1781403940000,-152.0,0.00019956,2]
[425000541,1781403940000,-152.0,0.00019975,2]
[425000543,1781403940000,-408.0,0.00020044,2]
[425000542,1781403940000,-402.0,0.00020018,2]
[425000544,1781403940000,-412.0,0.00020216,2]
[425000546,1781403940000,-150.0,0.00021918,2]
[425000545,1781403940000,-406.0,0.00020714,2]
[425000553,1781403940000,-281.52809163,0.00022795,2]
[425000550,1781403940000,-240.5953616,0.00022293,2]
[425000548,1781403940000,-402.0,0.00022196,2]
[425000556,1781403940000,-407.0,0.00022863,2]
[425000555,1781403940000,-77471.69310696,0.00022795,2]
[425000557,1781403940000,-1586.88,0.00022894,2]
[425000554,1781403940000,-637.12391071,0.00022795,2]
[425000551,1781403940000,-223.16315462,0.00022293,2]
[425000552,1781403940000,-228.08749558,0.00022407,2]
[425000549,1781403940000,-408.0,0.00022234,2]
[425000560,1781403941000,-1586.88,0.00022894,2]
[425000561,1781403941000,-500.0,0.00022894,2]
[425000562,1781403941000,-500.0,0.00022894,2]
[425000563,1781403941000,-500.0,0.00022894,2]
[425000558,1781403941000,-1586.88,0.00022894,2]
[425000565,1781403941000,-500.0,0.00022894,2]
[425000564,1781403941000,-500.0,0.00022894,2]
[425000568,1781403941000,-907490.47785367,0.00022895,2]
[425000559,1781403941000,-1586.88,0.00022894,2]
[425000566,1781403941000,-300.0,0.00022894,2]
[425000567,1781403941000,-438.19650333,0.00022894,2]
[425000573,1781403945000,-2000.0,0.00022895,2]
[425000572,1781403945000,-403.0,0.00022895,2]
[425000571,1781403945000,-411.0,0.00022895,2]
[425000569,1781403945000,-405.0,0.00022894,2]
[425000570,1781403945000,-73462.61925999,0.00022895,2]
[425000577,1781404027000,-176.25483511,0.00022913,2]
[425000576,1781404027000,-404.0,0.0002289,2]
[425000575,1781404027000,-150.0,0.00018,2]
[425000574,1781404027000,-505.0,0.00018,2]
[425000579,1781404039000,-117.02677294,0.00023014,2]
[425000578,1781404039000,-228.74516489,0.00022913,2]
[425000580,1781404045000,-32.97322706,0.00023014,2]
[425000582,1781404045000,-95.93053108,0.000232,2]
[425000581,1781404045000,-408.0,0.00023028,2]
[425000611,1781404232000,-999.99,0.00023528,2]
[425000585,1781404232000,-151.0,0.00017191,2]
[425000586,1781404232000,-151.0,0.00017191,2]
[425000589,1781404232000,-151.0,0.00017191,2]
[425000588,1781404232000,-150.0,0.00017191,2]
[425000590,1781404232000,-150.0,0.00017191,2]
[425000591,1781404232000,-151.0,0.00017191,2]
[425000593,1781404232000,-150.0,0.00017191,2]
[425000598,1781404232000,-216.06106235,0.00021356,2]
[425000596,1781404232000,-152.0,0.00017191,2]
[425000602,1781404232000,-927.81,0.00022894,2]
[425000595,1781404232000,-153.0,0.00017191,2]
[425000601,1781404232000,-242.32021775,0.00022407,2]
[425000587,1781404232000,-151.0,0.00017191,2]
[425000599,1781404232000,-150.0,0.00021918,2]
[425000600,1781404232000,-199.63000477,0.00022407,2]
[425000609,1781404232000,-403.0,0.00023269,2]
[425000608,1781404232000,-316.06946892,0.000232,2]
[425000606,1781404232000,-150.0,0.00023014,2]
[425000612,1781404232000,-166.66,0.00023811,30]
[425000607,1781404232000,-401.0,0.00023084,2]
[425000610,1781404232000,-166.66,0.0002332,30]
[425000605,1781404232000,-927.81,0.00022894,2]
[425000604,1781404232000,-927.81,0.00022894,2]
[425000592,1781404232000,-151.0,0.00017191,2]
[425000597,1781404232000,-708.56389782,0.0001891,2]
[425000594,1781404232000,-151.0,0.00017191,2]
[425000603,1781404232000,-927.81,0.00022894,2]
[425000639,1781404233000,-505.63919248,0.00026041,2]
[425000641,1781404233000,-502.98283694,0.00026583,2]
[425000646,1781404233000,-253.37528253,0.00027297,2]
[425000638,1781404233000,-151.0,0.00026007,2]
[425000644,1781404233000,-152.0,0.00027075,7]
[425000647,1781404233000,-162.30643576,0.00027341,2]
[425000640,1781404233000,-158.14814695,0.00026583,2]
[425000645,1781404233000,-184.8283893,0.00027297,2]
[425000642,1781404233000,-505.0,0.00026857,10]
[425000651,1781404233000,-300.0,0.00027396,10]
[425000659,1781404233000,-500.0,0.00027397,2]
[425000648,1781404233000,-151.0,0.00027341,2]
[425000660,1781404233000,-500.0,0.00027397,2]
[425000650,1781404233000,-157.98,0.00027387,2]
[425000656,1781404233000,-1410.78793696,0.00027396,2]
[425000655,1781404233000,-1410.78793696,0.00027396,2]
[425000652,1781404233000,-300.0,0.00027396,10]
[425000657,1781404233000,-500.0,0.00027397,2]
[425000637,1781404233000,-151.0,0.00026007,2]
[425000649,1781404233000,-209.0,0.00027381,2]
[425000636,1781404233000,-151.0,0.00026007,2]
[425000615,1781404233000,-1052.5637066,0.00024169,2]
[425000632,1781404233000,-151.0,0.00026007,2]
[425000613,1781404233000,-1421.03503201,0.0002398,2]
[425000614,1781404233000,-2399.37496799,0.0002398,2]
[425000616,1781404233000,-1595.23,0.00024174,2]
[425000619,1781404233000,-217.11,0.00024658,2]
[425000620,1781404233000,-185.69,0.00024758,120]
[425000617,1781404233000,-166.66,0.00024302,30]
[425000618,1781404233000,-5000.0,0.00024466,2]
[425000625,1781404233000,-1052.5637066,0.00025542,2]
[425000622,1781404233000,-1000.0,0.00024863,2]
[425000654,1781404233000,-300.0,0.00027396,5]
[425000623,1781404233000,-187.46,0.00024955,2]
[425000624,1781404233000,-166.66,0.00025284,30]
[425000621,1781404233000,-166.66,0.00024793,30]
[425000627,1781404233000,-1595.23,0.00025786,2]
[425000634,1781404233000,-151.0,0.00026007,2]
[425000629,1781404233000,-151.0,0.00026007,2]
[425000631,1781404233000,-151.0,0.00026007,2]
[425000630,1781404233000,-151.0,0.00026007,2]
[425000626,1781404233000,-166.66,0.00025775,30]
[425000635,1781404233000,-151.0,0.00026007,2]
[425000628,1781404233000,-151.0,0.00026007,2]
[425000633,1781404233000,-151.0,0.00026007,2]
[425000653,1781404233000,-300.0,0.00027396,10]
[425000643,1781404233000,-1052.5637066,0.00026916,2]
[425000663,1781404233000,-500.0,0.00027397,2]
[425000689,1781404233000,-500.0,0.00027397,2]
[425000687,1781404233000,-1120.72,0.00027397,2]
[425000684,1781404233000,-1174.96,0.00027397,2]
[425000685,1781404233000,-500.0,0.00027397,2]
[425000688,1781404233000,-500.0,0.00027397,2]
[425000690,1781404233000,-605.57996325,0.00027397,2]
[425000693,1781404233000,-625.45034161,0.00027397,2]
[425000696,1781404233000,-500.0,0.00027397,2]
[425000695,1781404233000,-500.0,0.00027397,2]
[425000697,1781404233000,-382.37890563,0.00027397,2]
[425000698,1781404233000,-117.62109437,0.00027397,2]
[425000702,1781404233000,-1597.52347005,0.00027397,2]
[425000700,1781404233000,-619.76543558,0.00027397,2]
[425000694,1781404233000,-500.0,0.00027397,2]
[425000699,1781404233000,-500.0,0.00027397,2]
[425000703,1781404233000,-88.32652995,0.00027397,2]
[425000706,1781404233000,-500.0,0.00027397,2]
[425000704,1781404233000,-500.0,0.00027397,2]
[425000705,1781404233000,-556.9,0.00027397,2]
[425000707,1781404233000,-306.64557127,0.00027397,2]
[425000658,1781404233000,-500.0,0.00027397,2]
[425000686,1781404233000,-500.0,0.00027397,2]
[425000683,1781404233000,-1664.47,0.00027397,2]
[425000701,1781404233000,-665.09,0.00027397,2]
[425000680,1781404233000,-500.0,0.00027397,2]
[425000661,1781404233000,-500.0,0.00027397,2]
[425000682,1781404233000,-500.0,0.00027397,2]
[425000666,1781404233000,-500.0,0.00027397,2]
[425000668,1781404233000,-554.20581763,0.00027397,2]
[425000665,1781404233000,-500.0,0.00027397,2]
[425000667,1781404233000,-426.53764749,0.00027397,2]
[425000669,1781404233000,-308.5528757,0.00027397,2]
[425000662,1781404233000,-500.0,0.00027397,2]
[425000670,1781404233000,-191.4471243,0.00027397,2]
[425000674,1781404233000,-327.55980028,0.00027397,2]
[425000664,1781404233000,-500.0,0.00027397,2]
[425000679,1781404233000,-52.59060794,0.00027397,2]
[425000673,1781404233000,-500.0,0.00027397,2]
[425000671,1781404233000,-500.0,0.00027397,2]
[425000675,1781404233000,-172.44019972,0.00027397,2]
[425000676,1781404233000,-327.55980028,0.00027397,2]
[425000677,1781404233000,-172.44019972,0.00027397,2]
[425000681,1781404233000,-562.80047257,0.00027397,2]
[425000678,1781404233000,-447.40939206,0.00027397,2]
[425000691,1781404233000,-1863.01,0.00027397,2]
[425000692,1781404233000,-1944.24,0.00027397,2]
[425000672,1781404233000,-500.0,0.00027397,2]
[425000720,1781404237000,-216.49,0.00024658,2]
[425000722,1781404237000,-182.08058144,0.00027397,2]
[425000721,1781404237000,-557.48342188,0.00027297,2]
[425000756,1781404238000,-705.99,0.00027397,2]
[425000769,1781404238000,-345.69787689,0.00027397,2]
[425000768,1781404238000,-500.0,0.00027397,2]
[425000754,1781404238000,-500.0,0.00027397,2]
[425000748,1781404238000,-500.0,0.00027397,2]
[425000751,1781404238000,-2801.04,0.00027397,2]
[425000753,1781404238000,-500.0,0.00027397,2]
[425000752,1781404238000,-500.0,0.00027397,2]
[425000758,1781404238000,-1487.94,0.00027397,2]
[425000755,1781404238000,-500.0,0.00027397,2]
[425000757,1781404238000,-1578.72,0.00027397,2]
[425000772,1781404238000,-2587.93,0.00027397,2]
[425000759,1781404238000,-500.0,0.00027397,2]
[425000761,1781404238000,-500.0,0.00027397,2]
[425000766,1781404238000,-500.0,0.00027397,2]
[425000764,1781404238000,-500.0,0.00027397,2]
[425000767,1781404238000,-500.0,0.00027397,2]
[425000765,1781404238000,-500.0,0.00027397,2]
[425000763,1781404238000,-2107.81,0.00027397,2]
[425000762,1781404238000,-500.0,0.00027397,2]
[425000771,1781404238000,-500.0,0.00027397,2]
[425000781,1781404238000,-2191.93,0.00027397,2]
[425000747,1781404238000,-500.0,0.00027397,2]
[425000760,1781404238000,-500.0,0.00027397,2]
[425000746,1781404238000,-500.0,0.00027397,2]
[425000723,1781404238000,-11.27384729,0.00027397,2]
[425000749,1781404238000,-500.0,0.00027397,2]
[425000724,1781404238000,-724.03014553,0.00027397,2]
[425000726,1781404238000,-1196.6194136,0.00027397,2]
[425000725,1781404238000,-135.38985447,0.00027397,2]
[425000728,1781404238000,-500.0,0.00027397,2]
[425000770,1781404238000,-500.0,0.00027397,2]
[425000727,1781404238000,-657.2305864,0.00027397,2]
[425000730,1781404238000,-500.0,0.00027397,2]
[425000729,1781404238000,-520.95,0.00027397,2]
[425000740,1781404238000,-500.0,0.00027397,2]
[425000733,1781404238000,-500.0,0.00027397,2]
[425000739,1781404238000,-500.0,0.00027397,2]
[425000732,1781404238000,-500.0,0.00027397,2]
[425000737,1781404238000,-2417.43,0.00027397,2]
[425000742,1781404238000,-500.0,0.00027397,2]
[425000731,1781404238000,-2750.12,0.00027397,2]
[425000734,1781404238000,-500.0,0.00027397,2]
[425000735,1781404238000,-500.0,0.00027397,2]
[425000738,1781404238000,-950.62,0.00027397,2]
[425000736,1781404238000,-839.24,0.00027397,2]
[425000741,1781404238000,-500.0,0.00027397,2]
[425000743,1781404238000,-500.0,0.00027397,2]
[425000744,1781404238000,-500.0,0.00027397,2]
[425000745,1781404238000,-1860.29,0.00027397,2]
[425000750,1781404238000,-500.0,0.00027397,2]
[425000780,1781404238000,-500.0,0.00027397,2]
[425000817,1781404238000,-896.34,0.00027397,2]
[425000777,1781404238000,-500.0,0.00027397,2]
[425000808,1781404238000,-500.0,0.00027397,2]
[425000807,1781404238000,-500.0,0.00027397,2]
[425000809,1781404238000,-507.13,0.00027397,2]
[425000798,1781404238000,-500.0,0.00027397,2]
[425000806,1781404238000,-751.31,0.00027397,2]
[425000811,1781404238000,-500.0,0.00027397,2]
[425000823,1781404238000,-600.24,0.00027397,2]
[425000819,1781404238000,-500.0,0.00027397,2]
[425000820,1781404238000,-500.0,0.00027397,2]
[425000812,1781404238000,-500.0,0.00027397,2]
[425000810,1781404238000,-579.74,0.00027397,2]
[425000822,1781404238000,-500.0,0.00027397,2]
[425000821,1781404238000,-1744.38,0.00027397,2]
[425000815,1781404238000,-517.64,0.00027397,2]
[425000814,1781404238000,-500.0,0.00027397,2]
[425000816,1781404238000,-500.0,0.00027397,2]
[425000818,1781404238000,-666.87,0.00027397,2]
[425000824,1781404238000,-500.0,0.00027397,2]
[425000826,1781404238000,-500.0,0.00027397,2]
[425000827,1781404238000,-500.0,0.00027397,2]
[425000828,1781404238000,-500.0,0.00027397,2]
[425000825,1781404238000,-676.6,0.00027397,2]
[425000778,1781404238000,-500.0,0.00027397,2]
[425000805,1781404238000,-500.0,0.00027397,2]
[425000804,1781404238000,-500.0,0.00027397,2]
[425000813,1781404238000,-1004.06,0.00027397,2]
[425000801,1781404238000,-293.028946,0.00027397,2]
[425000803,1781404238000,-500.0,0.00027397,2]
[425000782,1781404238000,-500.0,0.00027397,2]
[425000774,1781404238000,-500.0,0.00027397,15]
[425000776,1781404238000,-775.42,0.00027397,2]
[425000775,1781404238000,-500.0,0.00027397,2]
[425000773,1781404238000,-1833.4,0.00027397,2]
[425000779,1781404238000,-500.0,0.00027397,2]
[425000796,1781404238000,-760.48,0.00027397,2]
[425000786,1781404238000,-500.0,0.00027397,2]
[425000783,1781404238000,-507.58819921,0.00027397,2]
[425000794,1781404238000,-500.0,0.00027397,2]
[425000795,1781404238000,-500.0,0.00027397,2]
[425000784,1781404238000,-500.0,0.00027397,2]
[425000785,1781404238000,-500.0,0.00027397,2]
[425000802,1781404238000,-500.0,0.00027397,2]
[425000800,1781404238000,-500.0,0.00027397,2]
[425000799,1781404238000,-500.0,0.00027397,2]
[425000797,1781404238000,-500.0,0.00027397,2]
[425000792,1781404238000,-500.0,0.00027397,2]
[425000793,1781404238000,-500.0,0.00027397,2]
[425000787,1781404238000,-500.0,0.00027397,2]
[425000788,1781404238000,-500.0,0.00027397,2]
[425000789,1781404238000,-500.0,0.00027397,2]
[425000791,1781404238000,-500.0,0.00027397,2]
[425000790,1781404238000,-500.0,0.00027397,2]
[425000868,1781404239000,-500.0,0.00027397,2]
[425000865,1781404239000,-500.0,0.00027397,2]
[425000867,1781404239000,-1120.41,0.00027397,2]
[425000869,1781404239000,-500.0,0.00027397,2]
[425000866,1781404239000,-500.0,0.00027397,2]
[425000861,1781404239000,-500.0,0.00027397,2]
[425000873,1781404239000,-500.0,0.00027397,2]
[425000863,1781404239000,-500.0,0.00027397,2]
[425000862,1781404239000,-500.0,0.00027397,2]
[425000860,1781404239000,-500.0,0.00027397,2]
[425000870,1781404239000,-500.0,0.00027397,2]
[425000864,1781404239000,-500.0,0.00027397,2]
[425000871,1781404239000,-500.0,0.00027397,2]
[425000887,1781404239000,-500.0,0.00027397,2]
[425000874,1781404239000,-500.0,0.00027397,2]
[425000880,1781404239000,-151.0,0.00027397,2]
[425000881,1781404239000,-151.0,0.00027397,2]
[425000882,1781404239000,-500.0,0.00027397,2]
[425000884,1781404239000,-151.0,0.00027397,2]
[425000877,1781404239000,-500.0,0.00027397,2]
[425000883,1781404239000,-500.0,0.00027397,2]
[425000875,1781404239000,-500.0,0.00027397,2]
[425000878,1781404239000,-500.0,0.00027397,2]
[425000879,1781404239000,-500.0,0.00027397,2]
[425000886,1781404239000,-500.0,0.00027397,2]
[425000895,1781404239000,-641.42800794,0.00027397,2]
[425000850,1781404239000,-500.0,0.00027397,2]
[425000872,1781404239000,-500.0,0.00027397,2]
[425000857,1781404239000,-549.5,0.00027397,2]
[425000834,1781404239000,-500.0,0.00027397,2]
[425000851,1781404239000,-546.58,0.00027397,2]
[425000836,1781404239000,-535.68809878,0.00027397,2]
[425000829,1781404239000,-500.0,0.00027397,2]
[425000835,1781404239000,-500.0,0.00027397,2]
[425000896,1781404239000,-500.0,0.00027397,2]
[425000831,1781404239000,-1296.78,0.00027397,2]
[425000830,1781404239000,-500.0,0.00027397,2]
[425000833,1781404239000,-500.0,0.00027397,2]
[425000832,1781404239000,-500.0,0.00027397,2]
[425000837,1781404239000,-500.0,0.00027397,2]
[425000848,1781404239000,-500.0,0.00027397,2]
[425000846,1781404239000,-500.0,0.00027397,2]
[425000847,1781404239000,-500.0,0.00027397,2]
[425000838,1781404239000,-500.0,0.00027397,2]
[425000839,1781404239000,-500.0,0.00027397,2]
[425000840,1781404239000,-500.0,0.00027397,2]
[425000841,1781404239000,-500.0,0.00027397,2]
[425000842,1781404239000,-500.0,0.00027397,2]
[425000844,1781404239000,-500.0,0.00027397,2]
[425000845,1781404239000,-500.0,0.00027397,2]
[425000843,1781404239000,-2246.27,0.00027397,2]
[425000849,1781404239000,-500.0,0.00027397,2]
[425000852,1781404239000,-500.0,0.00027397,2]
[425000855,1781404239000,-500.0,0.00027397,2]
[425000853,1781404239000,-555.1,0.00027397,2]
[425000854,1781404239000,-500.0,0.00027397,2]
[425000858,1781404239000,-630.95,0.00027397,2]
[425000856,1781404239000,-500.0,0.00027397,2]
[425000859,1781404239000,-500.0,0.00027397,2]
[425000885,1781404239000,-251.230138,0.00027397,2]
[425000876,1781404239000,-967.92,0.00027397,2]
[425000890,1781404239000,-500.0,0.00027397,2]
[425000925,1781404239000,-1499.5,0.00027397,2]
[425000923,1781404239000,-500.0,0.00027397,2]
[425000926,1781404239000,-2446.57,0.00027397,2]
[425000924,1781404239000,-500.0,0.00027397,2]
[425000927,1781404239000,-500.0,0.00027397,2]
[425000931,1781404239000,-500.0,0.00027397,2]
[425000929,1781404239000,-500.0,0.00027397,2]
[425000932,1781404239000,-500.0,0.00027397,2]
[425000930,1781404239000,-500.0,0.00027397,2]
[425000928,1781404239000,-604.69,0.00027397,2]
[425000933,1781404239000,-500.0,0.00027397,2]
[425000934,1781404239000,-500.0,0.00027397,2]
[425000945,1781404239000,-2096.52,0.00027397,2]
[425000920,1781404239000,-2992.92,0.00027397,2]
[425000946,1781404239000,-500.0,0.00027397,2]
[425000935,1781404239000,-500.0,0.00027397,2]
[425000939,1781404239000,-552.84317814,0.00027397,2]
[425000937,1781404239000,-1260.48,0.00027397,2]
[425000938,1781404239000,-595.64,0.00027397,2]
[425000942,1781404239000,-500.0,0.00027397,2]
[425000943,1781404239000,-500.0,0.00027397,2]
[425000941,1781404239000,-602.93,0.00027397,2]
[425000944,1781404239000,-1728.75,0.00027397,2]
[425000947,1781404239000,-500.0,0.00027397,2]
[425000948,1781404239000,-834.53,0.00027397,2]
[425000950,1781404239000,-618.79,0.00027397,2]
[425000949,1781404239000,-500.0,0.00027397,2]
[425000894,1781404239000,-500.0,0.00027397,2]
[425000940,1781404239000,-500.0,0.00027397,2]
[425000919,1781404239000,-643.05,0.00027397,2]
[425000936,1781404239000,-500.0,0.00027397,2]
[425000917,1781404239000,-500.0,0.00027397,2]
[425000889,1781404239000,-500.0,0.00027397,2]
[425000918,1781404239000,-500.0,0.00027397,2]
[425000891,1781404239000,-500.0,0.00027397,2]
[425000888,1781404239000,-1138.66,0.00027397,2]
[425000892,1781404239000,-500.0,0.00027397,2]
[425000893,1781404239000,-500.0,0.00027397,2]
[425000897,1781404239000,-500.0,0.00027397,2]
[425000899,1781404239000,-500.0,0.00027397,2]
[425000900,1781404239000,-543.07665686,0.00027397,2]
[425000906,1781404239000,-575.28,0.00027397,2]
[425000902,1781404239000,-500.0,0.00027397,2]
[425000905,1781404239000,-726.02,0.00027397,2]
[425000907,1781404239000,-677.98,0.00027397,2]
[425000908,1781404239000,-500.0,0.00027397,2]